[Event "Chinese Championship-B Women 2024"]
[Site "Liaocheng"]
[Date "2024.04.26"]
[Round "11.8"]
[White "Cui, Wen"]
[Black "Gao, Muziyan"]
[Result "0-1"]
[ECO "B67"]
[WhiteElo "1825"]
[BlackElo "1891"]
[Annotator "NA RC"]
[PlyCount "134"]
[EventDate "2024.04.24"]
[EventType "swiss"]
[EventCountry "CHN"]
[SourceTitle "playchess.com"]
[Source "ChessBase"]
[SourceQuality "1"]
[TimeControl "5400+30"]

{[%evp 21,122,16,37,32,56,32767,95,32767,79,77,131,100,133,114,116,105,151,142,158,150,147,145,113,90,128,32767,118,116,207,118,145,128,136,71,80,67,104,61,32767,61,125,32767,52,58,167,146,163,12,39,32767,32767,32767,32767,0,45,46,58,44,56,60,59,61,104,119,163,145,210,0,0,0,0,0,0,0,72,74,64,33,38,10,10,8,8,7,50,0,10,0,0,0,0,-21,-35,-15,-27,-14,-8,-547,-52,-222,-215,-193,-223]} 1. e4 {[%emt 0:00:03]} c5 {[%emt 0:00:07]} 2. Nf3 {[%emt 0:00:14]} Nc6 {[%emt 0:00:05]} 3. d4 {[%emt 0:00:15]} cxd4 {[%emt 0:00:07]} 4. Nxd4 {[%emt 0:00:10]} Nf6 {[%emt 0:00:08]} 5. Nc3 {[%emt 0:00:09]} d6 {[%emt 0:00:04]} 6. Bg5 {[%emt 0:00:16]} e6 {[%emt 0:00:08]} 7. Qd2 {[%emt 1:32:53]} a6 {[%emt 0:00:41]} 8. O-O-O {[%emt 0:00:00]} Bd7 {[%emt 0:00:17]} 9. f3 {[%emt 0:00:00]} Be7 {[%emt 0:00:27]} 10. Kb1 {[%emt 0:00:00]} Qc7 {[%emt 0:10:08]} 11. h4 {[%emt 0:00:00] 11.Be3 is not played anymore.} h6 {[%emt 0:00:47] B67: Sicilian: Richter-Rauzer: 7...a6 8 0-0-0 Bd7, lines without 9 f4 Be7.} 12. Be3 {[%emt 0:00:00]} Ne5 {[%emt 0:06:15]} 13. g4 {[%emt 0:00:00]} b5 {[%emt 0:01:47]} 14. a3 {[%emt 0:00:00]} Rb8 {[%emt 0:07:18]} 15. Rg1 {[%emt 0:00:00]} Nc4 {[%emt 0:10:21]} (15... Qb7 $14) 16. Bxc4 {[%emt 0:00:00]} bxc4 {[%emt 0:01:55]} 17. Ka2 {[%emt 0:00:00]} Qb7 $146 {[%emt 0:03:54]} ({Predecessor:} 17... g6 18. g5 hxg5 19. hxg5 Nh5 20. f4 Qb7 21. Rb1 Ng7 22. Nde2 Rh2 23. Qd4 Kf8 24. Qxc4 {0-1 Aliavdin,N (2324)-Sanal,V (2563) Titled Tuesday intern op 04th May blitz 2021 (4)}) 18. Rb1 {[%emt 0:00:00]} Bd8 {[%emt 0:08:32]} (18... Kf8 $142) 19. g5 {[%emt 0:00:00]} hxg5 {[%emt 0:00:44]} 20. hxg5 {[%emt 0:00:00]} Ng8 {[%emt 0:01:42]} 21. g6 {[%emt 0:07:00]} f6 {[%emt 0:03:14]} 22. Qe2 {[%emt 0:00:00]} ({Better is} 22. b4 cxb3+ 23. Nxb3 (23. Rxb3 Qc8 $16)) 22... Ne7 {[%emt 0:15:48]} 23. Qxc4 {[%emt 0:00:00]} Rc8 {[%emt 0:00:04]} 24. Qd3 {[%emt 0:00:00]} Rh3 {[%emt 0:00:54]} (24... e5 $16 {might work better.}) 25. Rh1 {[%emt 0:00:00]} (25. e5 $18 Nd5 (25... dxe5 $2 {loses.} 26. Rh1 $18) 26. Ne4 (26. exd6 e5 $18)) 25... Rxh1 {[%emt 0:03:16]} 26. Rxh1 {[%emt 0:00:00]} Nxg6 {[%emt 0:00:10]} 27. f4 {[%emt 0:00:00]} ({White should play} 27. Qf1 Nf8 28. Nb3) 27... Ba5 {[%emt 0:07:16]} 28. Nde2 {[%emt 0:00:00]} Qc6 {[%emt 0:05:33]} 29. Ka1 {[%emt 0:00:00]} (29. Rd1 $16) 29... Kf7 {[%emt 0:04:49]} 30. Bc1 {[%emt 0:00:00]} Rh8 {[%emt 0:03:01]} (30... d5 $142) 31. Rg1 {[%emt 0:00:00]} Bb6 {[%emt 0:01:10]} 32. Rd1 {[%emt 0:00:00]} Bc7 {[%emt 0:00:49]} (32... Bc8 $14) 33. Nd4 {[%emt 0:00:00]} Qb7 {[%emt 0:01:51]} 34. Rg1 {[%emt 0:00:00]} (34. Qc4 $16) 34... Ne7 {[%emt 0:01:57]} 35. Nf3 {[%emt 0:01:13]} Bb5 $11 {[%emt 0:00:24] is more appropriate.} 36. Qd2 {[%emt 0:00:46]} (36. Nxb5 Qxb5) 36... Bc6 {[%emt 0:01:08]} 37. Qd3 {[%emt 0:01:10]} Bb6 {[%emt 0:00:31]} 38. Be3 {[%emt 0:00:29]} Bxe3 {[%emt 0:01:09]} 39. Qxe3 {[%emt 0:00:04]} d5 {[%emt 0:00:11] [#]} 40. e5 $1 {[%emt 0:01:25]} Nf5 {[%emt 0:00:21]} 41. Qd2 {[%emt 0:01:32]} Rh3 {[%emt 0:01:18]} ({Better is} 41... Qa7 $14 42. Ne2 Qf2 (42... Qe3 43. Qa5 $16)) 42. Nd4 {[%emt 0:00:56]} Qb6 {[%emt 0:00:08]} (42... Nxd4 $16 43. Qxd4 Qa8) 43. Nce2 {[%emt 0:00:48]} Rh2 {[%emt 0:00:27]} (43... Ne7 $16 44. f5 Nxf5 (44... fxe5 $2 {too greedy.} 45. Qg5 $18)) 44. Re1 $2 {[%emt 0:02:04]} (44. exf6 $18 gxf6 (44... Qxd4 45. Qxd4 Nxd4 46. Nxd4 $18) 45. Qc3) 44... Nxd4 {[%emt 0:00:57]} 45. Qxd4 {[%emt 0:00:06]} Qxd4 {[%emt 0:00:15]} 46. Nxd4 $11 {[%emt 0:00:04]} Bd7 {[%emt 0:00:01]} 47. f5 {[%emt 0:01:32]} Rd2 {[%emt 0:01:51] [#]} (47... Rh4 $11 48. fxe6+ Bxe6 49. Nxe6 Kxe6 50. exf6+ Kxf6) 48. c3 $1 {[%emt 0:00:39]} fxe5 {[%emt 0:00:00]} 49. fxe6+ {[%emt 0:00:24]} (49. Nf3 $16 Rf2 50. Nxe5+ Ke7 51. Nxd7 Kxd7 52. Rxe6 (52. fxe6+ Ke7 $16)) 49... Bxe6 {[%emt 0:00:00]} 50. Rxe5 {[%emt 0:00:06]} Bh3 {[%emt 0:00:44]} 51. Kb1 {[%emt 0:00:24]} (51. Rxd5 $2 {too greedy.} Be6 52. Nxe6 Rxd5 $19) 51... Bg2 {[%emt 0:00:36]} 52. Kc1 {[%emt 0:00:58]} Rd3 {[%emt 0:00:36]} (52... Rf2 $11) 53. Nc6 {[%emt 0:00:33]} Rh3 {[%emt 0:00:28]} 54. Re7+ {[%emt 0:00:39]} Kf6 {[%emt 0:00:11]} 55. Ra7 {[%emt 0:00:13]} Bf1 {[%emt 0:00:50]} 56. Nb4 {[%emt 0:00:08]} Bc4 {[%emt 0:00:02]} 57. Nxa6 {[%emt 0:00:32]} g5 {[%emt 0:00:22]} 58. Nb4 $1 {[%emt 0:00:26]} g4 {[%emt 0:00:21]} 59. Rd7 $2 {[%emt 0:00:25]} (59. Kd2 $1 $11) 59... Rh5 $2 {[%emt 0:01:18]} (59... g3 $19 60. Nxd5+ Bxd5 61. Rxd5 g2 62. Rd6+ Ke5) 60. Nc2 $19 {[%emt 0:01:12]} (60. Kd2 $15) 60... Rh1+ {[%emt 0:00:08]} 61. Kd2 {[%emt 0:00:07]} Rh2+ {[%emt 0:00:06]} 62. Kc1 {[%emt 0:00:12]} Rh1+ {[%emt 0:00:10]} 63. Kd2 {[%emt 0:00:04]} Rh2+ {[%emt 0:00:03]} 64. Kc1 {[%emt 0:00:04]} g3 {[%emt 0:01:16]} 65. Ne3 {[%emt 0:01:58]} Re2 {[%emt 0:01:12]} 66. Nxd5+ {[%emt 0:00:34]} Bxd5 {[%emt 0:00:18]} 67. Rxd5 {[%emt 0:00:05]} g2 {[%emt 0:00:02]} 0-1

[Event "Chinese Championship-B Women 2024"]
[Site "Liaocheng"]
[Date "2024.04.26"]
[Round "11.9"]
[White "Xu, Mingwei"]
[Black "Guo, Hanxi"]
[Result "1/2-1/2"]
[ECO "B30"]
[WhiteElo "2037"]
[BlackElo "1699"]
[Annotator "TA"]
[PlyCount "82"]
[EventDate "2024.04.24"]
[EventType "swiss"]
[EventCountry "CHN"]
[SourceTitle "playchess.com"]
[Source "ChessBase"]
[SourceQuality "1"]
[TimeControl "5400+30"]

{[%evp 11,82,17,14,24,35,28,33,35,40,25,27,34,59,40,72,10,86,8,91,59,68,53,52,0,39,-4,41,-26,-17,-31,-4,-16,4,0,17,0,9,-11,-10,-14,-7,-81,-74,-79,-75,-68,-46,-46,-47,-48,0,0,0,0,0,0,0,0,0,0,0,0,0,0,0,0,0,0,0,0,0,0,0]} 1. e4 {[%emt 0:00:03]} c5 {[%emt 0:00:04]} 2. Nf3 {[%emt 0:00:06]} Nc6 {[%emt 0:00:04]} 3. Bb5 {[%emt 0:00:13]} e6 {[%emt 0:00:05]} 4. d4 {[%emt 0:00:05]} cxd4 {[%emt 0:00:27]} 5. Nxd4 {[%emt 1:32:33]} Nge7 {[%emt 0:01:55]} 6. O-O {[%emt 0:00:00]} Qb6 {[%emt 0:00:16]} 7. Nxc6 {[%emt 0:00:00]} bxc6 {[%emt 0:01:14]} 8. Be2 {[%emt 0:00:00]} Ng6 {[%emt 0:00:27]} 9. c4 {[%emt 0:00:00] White is slightly better.} Be7 {[%emt 0:01:28]} 10. Nc3 {[%emt 0:00:00]} O-O {[%emt 0:02:23]} 11. Qc2 {[%emt 0:00:00]} Bb7 {[%emt 0:05:03]} 12. Be3 {[%emt 0:00:00]} Qc7 {[%emt 0:00:30]} 13. Rfd1 {[%emt 0:00:00]} (13. c5 $16) 13... Rfd8 {[%emt 0:16:42]} (13... d5 $11 {remains equal.}) 14. Rac1 {[%emt 0:00:00]} ({White should play} 14. c5 $16) 14... e5 {[%emt 0:03:39]} (14... c5 $11) 15. a3 {[%emt 0:00:00]} Nf8 {[%emt 0:01:05][%cal Bg6f8,Bf8e6,Be6d4][%mdl 32]} 16. Bg4 {[%emt 0:00:00] White has more active pieces.} Ne6 {[%emt 0:03:53]} 17. Ne2 {[%emt 0:00:00]} (17. Bxe6 $14 dxe6 18. c5) 17... d6 {[%emt 0:03:56]} 18. Ng3 {[%emt 0:00:00]} c5 {[%emt 0:03:04]} 19. Nf5 {[%emt 0:00:00]} ({White should try} 19. Bxe6 $14 fxe6 20. b4) 19... Bf6 {[%emt 0:53:45]} 20. Qd3 {[%emt 0:00:00][%cal Rf5d6]} Nd4 {[%emt 0:00:00]} 21. b4 {[%emt 0:00:00]} Bc6 {[%emt 0:00:00]} 22. b5 {[%emt 0:00:00]} Bd7 {[%emt 0:00:00]} 23. Bd2 {[%emt 0:00:00]} Bxf5 {[%emt 0:00:00]} 24. exf5 {[%emt 0:00:00]} d5 {[%emt 0:00:00]} 25. cxd5 {[%emt 0:00:00]} Rxd5 {[%emt 0:00:00]} 26. Bf3 {[%emt 0:00:00]} (26. Kh1 $11 {keeps the balance.} Rad8 27. Be3) 26... Nxf3+ $17 {[%emt 0:00:00]} 27. Qxf3 {[%emt 0:00:00]} Rad8 {[%emt 0:00:00]} 28. Be3 {[%emt 0:00:00] [#]} e4 $1 {[%emt 0:00:00]} 29. Qg4 {[%emt 0:00:00] Black must now prevent Rxd5.} Rxd1+ 30. Rxd1 {[%emt 0:00:00]} Rxd1+ {[%emt 0:00:00]} (30... h5 $1 $15 {feels stronger.} 31. Qe2 (31. Qxe4 $2 Rxd1#) (31. Qxh5 c4 $17) (31. Rxd8+ $2 Qxd8 32. Qxh5 c4 $17) 31... Rxd1+ 32. Qxd1 Bd4) 31. Qxd1 $15 {[%emt 0:00:00][%mdl 4096] Endgame. KQB-KQB. The position is equal.} Bd4 {[%emt 0:00:00]} 32. g3 {[%emt 0:00:00]} ({Wrong is} 32. Bxd4 $2 cxd4 33. g3 d3 $19) 32... Bxe3 {[%emt 0:00:00]} 33. fxe3 $11 {[%emt 0:00:00] KQ-KQ} h6 {[%emt 0:00:00] [#] Hoping for ...c4.} (33... c4 $5 34. Qd5 $8 g6 $11) 34. Qd5 {[%emt 0:00:00]} Qa5 {[%emt 0:00:00] aiming for ...Qe1+.} 35. Qxc5 {[%emt 0:00:08]} Qe1+ {[%emt 0:00:00]} 36. Kg2 {[%emt 0:00:13]} Qe2+ {[%emt 0:00:00]} 37. Kg1 {[%emt 0:00:24]} Qe1+ {[%emt 0:02:24]} 38. Kg2 {[%emt 0:00:02]} Qe2+ {[%emt 0:00:11]} 39. Kg1 {[%emt 0:00:13]} Qd1+ {[%emt 0:01:27]} 40. Kg2 {[%emt 0:00:27]} Qe2+ {[%emt 0:00:06]} 41. Kg1 {[%emt 0:00:22]} Qe1+ {[%emt 0:00:06] Weighted Error Value: White=0.23 (precise) /Black=0.16 (very precise) .  Mistake:       	White=5     	Black=3      Inaccurate:     	White=2     	Black=4      OK:         	White=9     	Black=13     Best:        	---       	Black=1      Brilliant:      	---       	Black=1} 1/2-1/2

[Event "Chinese Championship-B Women 2024"]
[Site "Liaocheng"]
[Date "2024.04.26"]
[Round "11.10"]
[White "He, Yixuan"]
[Black "Pian, Junyao"]
[Result "1-0"]
[ECO "B99"]
[WhiteElo "1812"]
[BlackElo "1717"]
[Annotator "NA RC"]
[PlyCount "57"]
[EventDate "2024.04.24"]
[EventType "swiss"]
[EventCountry "CHN"]
[SourceTitle "playchess.com"]
[Source "ChessBase"]
[SourceQuality "1"]
[TimeControl "5400+30"]

{[%evp 8,56,16,33,14,27,32767,32767,32767,32767,32767,32767,32767,32767,32767,32767,32767,32767,106,129,94,32767,32767,515,431,32767,32767,563,32767,32767,32767,32767,32767,579,571,602,897,32767,696,32767,685,743,794,570,29992,29993,29995,29996,29998,29999,29999]} 1. e4 {[%emt 0:00:03]} c5 {[%emt 0:00:05]} 2. Nf3 {[%emt 0:00:03]} d6 {[%emt 0:00:06]} 3. d4 cxd4 {[%emt 0:00:06]} 4. Nxd4 {[%emt 0:00:06]} Nf6 {[%emt 0:00:09]} 5. Nc3 {[%emt 0:00:04]} a6 {[%emt 1:32:34]} 6. Bg5 {[%emt 0:00:00]} e6 {[%emt 0:00:30]} 7. f4 {[%emt 1:33:44]} Be7 {[%emt 0:00:00]} 8. Qf3 {[%emt 0:00:00]} Qc7 9. O-O-O {[%emt 0:00:00]} Nbd7 {[%emt 0:02:00]} 10. Bd3 {[%emt 0:01:30]} Nc5 {[%emt 0:00:00]} 11. Rhe1 {[%emt 0:00:00]} O-O {[%emt 0:00:00]} 12. Qg3 {[%emt 0:00:00] B99: Sicilian Najdorf: 6 Bg5 e6 7 f4 Be7 8 Qf3 Qc7 9 0-0-0 Nbd7.} Nxd3+ {[%emt 0:00:00]} (12... e5 $14 13. Nf5 Bxf5 14. exf5 exf4 15. Qxf4 (15. Bxf4 Rfe8 $14) 15... Rac8) 13. Rxd3 {[%emt 0:00:00]} Kh8 {[%emt 0:00:00]} 14. Qh4 {[%emt 0:00:00]} e5 {[%emt 0:00:00]} 15. Nf5 {[%emt 0:00:00]} Bxf5 {[%emt 0:00:00]} 16. exf5 {[%emt 0:00:00]} Qc8 {[%emt 0:05:30]} 17. fxe5 {[%emt 0:00:00]} dxe5 {[%emt 0:00:00]} 18. Rxe5 {[%emt 0:04:00]} Qc7 {[%emt 0:01:00]} 19. Re1 {[%emt 0:00:30]} Qc5 {[%emt 0:00:00]} 20. Rh3 $18 {[%emt 0:00:00]} Qxf5 {[%emt 0:00:00]} 21. Rxe7 {[%emt 0:00:00]} Rfe8 {[%emt 0:00:00]} 22. Rxe8+ {[%emt 0:00:00]} Rxe8 {[%emt 0:00:00]} 23. Rf3 {[%emt 0:00:00]} Qg6 {[%emt 0:00:00]} 24. Bxf6 {[%emt 0:00:00]} Qxg2 {[%emt 0:00:00]} 25. Bxg7+ {[%emt 0:00:00]} Kg8 {[%emt 0:00:00] [#]} 26. Bh6 $1 {[%emt 0:00:00]} Qh1+ {[%emt 0:00:00]} 27. Nd1 {[%emt 0:00:00]} Qxf3 {[%emt 0:00:00]} 28. Qg5+ {[%emt 0:00:00]} Kh8 {[%emt 0:00:00]} 29. Qg7# {[%emt 0:00:00]} 1-0

[Event "Chinese Championship-B Women 2024"]
[Site "Liaocheng"]
[Date "2024.04.26"]
[Round "11.11"]
[White "Wu, Yiting"]
[Black "Shi, Yige"]
[Result "1-0"]
[ECO "B94"]
[WhiteElo "1721"]
[BlackElo "1794"]
[Annotator "NA RC"]
[PlyCount "155"]
[EventDate "2024.04.24"]
[EventType "swiss"]
[EventCountry "CHN"]
[SourceTitle "playchess.com"]
[Source "ChessBase"]
[SourceQuality "1"]
[TimeControl "5400+30"]

1. e4 {[%emt 0:00:01]} c5 {[%emt 0:00:04]} 2. Nf3 {[%emt 0:00:05]} d6 {[%emt 0:00:04]} 3. d4 {[%emt 0:00:07]} cxd4 {[%emt 0:00:03]} 4. Nxd4 {[%emt 0:00:07]} Nf6 {[%emt 0:00:05]} 5. Nc3 {[%emt 0:00:08]} a6 {[%emt 0:00:02]} 6. Bg5 {[%emt 0:00:11]} Nbd7 {[%emt 0:00:06]} 7. Bc4 {[%emt 0:00:13]} Qb6 {[%emt 0:00:05]} 8. Bb3 {[%emt 0:00:07]} e6 {[%emt 0:00:04]} 9. Bxf6 {[%emt 0:00:18]} Nxf6 {[%emt 0:00:05]} 10. Qd2 {[%emt 0:00:09]} Nd7 {[%emt 1:34:52]} 11. O-O-O {[%emt 0:01:32]} Nc5 {[%emt 0:00:00]} 12. Rhe1 {[%emt 0:03:04]} Bd7 {[%emt 0:00:00]} 13. f4 {[%emt 0:01:56]} O-O-O {[%emt 0:00:00]} 14. g4 {[%emt 0:03:21]} g6 {[%emt 0:00:00]} 15. Nf3 {[%emt 0:20:44]} h6 {[%emt 0:00:00]} 16. Kb1 {[%emt 0:07:30]} Bg7 {[%emt 0:00:00]} 17. Qe3 {[%emt 0:09:38]} Kb8 {[%emt 0:00:00]} 18. e5 {[%emt 0:04:02]} Bc6 {[%emt 0:00:00]} 19. exd6 {[%emt 0:11:33]} Bxf3 {[%emt 0:00:00]} 20. Qxf3 {[%emt 0:00:02]} Nxb3 {[%emt 0:00:00]} 21. axb3 {[%emt 0:00:29]} Rxd6 {[%emt 0:00:00]} 22. Rxd6 {[%emt 0:05:26]} Qxd6 {[%emt 0:00:00]} 23. Rd1 {[%emt 0:00:13]} Qc7 {[%emt 0:00:00]} 24. f5 {[%emt 0:04:09]} exf5 {[%emt 0:00:00]} 25. gxf5 {[%emt 0:00:27]} Bxc3 {[%emt 0:00:00]} 26. bxc3 {[%emt 0:00:17]} Rc8 {[%emt 0:00:00]} 27. fxg6 {[%emt 0:01:37]} fxg6 {[%emt 0:00:00]} 28. Qg2 {[%emt 0:02:14]} g5 {[%emt 0:00:00]} 29. Rd3 {[%emt 0:01:17]} Re8 {[%emt 0:00:00]} 30. Qd2 {[%emt 0:01:42]} Qe7 {[%emt 0:00:00]} 31. Rd6 {[%emt 0:01:48]} h5 {[%emt 0:00:00]} 32. Rd5 {[%emt 0:00:51]} Rg8 {[%emt 0:00:00]} 33. Rd7 {[%emt 0:00:36]} Qc5 {[%emt 0:00:00]} 34. Qg2 {[%emt 0:01:58]} Qb6 {[%emt 0:00:00]} 35. Qd5 {[%emt 0:00:58]} Rg6 {[%emt 0:00:00]} 36. Qf7 {[%emt 0:04:10]} Re6 {[%emt 0:00:00]} 37. Qg8+ {[%emt 0:01:57]} Ka7 {[%emt 0:00:00]} 38. Qxg5 {[%emt 0:00:22]} Qc6 {[%emt 0:04:10]} 39. Qg1+ {[%emt 0:02:05]} Kb8 {[%emt 0:01:07]} 40. Rd3 {[%emt 0:01:04]} Re8 {[%emt 0:01:35]} 41. Kb2 {[%emt 0:02:01]} Qb5 {[%emt 0:00:56]} 42. Qg3+ {[%emt 0:00:53]} Ka7 {[%emt 0:00:09]} 43. Qf2+ {[%emt 0:00:18]} Ka8 {[%emt 0:01:05]} 44. Qf3 {[%emt 0:02:02]} Re5 {[%emt 0:01:10]} 45. Rd8+ {[%emt 0:00:58]} Ka7 {[%emt 0:00:05]} 46. Qf2+ {[%emt 0:00:20]} Qc5 {[%emt 0:00:04]} 47. Qxc5+ {[%emt 0:01:44]} Rxc5 {[%emt 0:08:09]} 48. c4 {[%emt 0:00:16]} Rc6 {[%emt 0:00:00]} 49. Rd5 {[%emt 0:00:45]} Rh6 {[%emt 0:01:00]} 50. h4 {[%emt 0:00:08]} Kb6 {[%emt 0:00:00]} 51. Kc3 {[%emt 0:00:15]} Kc6 {[%emt 0:00:00]} 52. Kd4 {[%emt 0:00:15]} b5 {[%emt 0:00:00]} 53. cxb5+ {[%emt 0:00:50]} axb5 {[%emt 0:00:00]} 54. Rc5+ {[%emt 0:00:12]} Kb6 {[%emt 0:00:00]} 55. b4 {[%emt 0:00:30]} Rh8 {[%emt 0:00:00]} 56. c3 {[%emt 0:00:24]} Rg8 {[%emt 0:00:00]} 57. Rxh5 {[%emt 0:00:49]} Rg4+ {[%emt 0:00:00]} 58. Kd3 {[%emt 0:00:53]} Rg3+ {[%emt 0:00:00]} 59. Kc2 {[%emt 0:00:21]} Rh3 {[%emt 0:00:00]} 60. Rh6+ {[%emt 0:00:07]} Kb7 {[%emt 0:00:00]} 61. h5 {[%emt 0:00:31]} Rh2+ {[%emt 0:00:00]} 62. Kd3 {[%emt 0:00:31]} Rh4 {[%emt 0:00:00]} 63. Rh7+ {[%emt 0:00:17]} Kc6 {[%emt 0:00:00]} 64. Rh8 {[%emt 0:00:42]} Kd5 {[%emt 0:00:00]} 65. Rd8+ {[%emt 0:03:09]} Kc6 {[%emt 0:00:00]} 66. Rc8+ {[%emt 0:00:12]} Kb6 {[%emt 0:00:00]} 67. Rc5 {[%emt 0:00:28]} Rf4 {[%emt 0:00:06]} 68. Ke3 {[%emt 0:00:12]} Rf1 {[%emt 0:00:05]} 69. Ke4 {[%emt 0:01:00]} Rf2 {[%emt 0:00:55]} 70. Rf5 {[%emt 0:00:44]} Rc2 {[%emt 0:00:10]} 71. Rf6+ {[%emt 0:00:35]} Kc7 {[%emt 0:00:06]} 72. Kd4 {[%emt 0:00:33]} Rh2 {[%emt 0:00:12]} 73. Rh6 {[%emt 0:02:08]} Rg2 {[%emt 0:00:40]} 74. Rg6 {[%emt 0:02:17]} Rh2 {[%emt 0:00:21]} 75. h6 {[%emt 0:00:06]} Rh4+ {[%emt 0:00:11]} 76. Ke5 {[%emt 0:00:40]} Kd7 {[%emt 0:03:17]} 77. Kf6 {[%emt 0:00:24]} Ke8 {[%emt 0:00:19]} 78. Kg7 {[%emt 0:00:30]} 1-0

[Event "Chinese Championship-B Women 2024"]
[Site "Liaocheng"]
[Date "2024.04.26"]
[Round "11.12"]
[White "Wang, Rachel Zihan"]
[Black "Xue, Shixuan"]
[Result "1/2-1/2"]
[ECO "A81"]
[WhiteElo "1813"]
[BlackElo "1790"]
[Annotator "NA RC"]
[PlyCount "63"]
[EventDate "2024.04.24"]
[EventType "swiss"]
[EventCountry "CHN"]
[SourceTitle "playchess.com"]
[Source "ChessBase"]
[SourceQuality "1"]
[TimeControl "5400+30"]

{[%evp 11,62,20,32767,32767,32767,32767,32767,32767,32767,32767,31,-4,0,-30,0,-5,-11,-18,-6,-16,0,-16,25,-15,18,32767,0,0,32767,21,24,0,8,-20,0,-38,26,33,47,32767,58,32767,0,0,2,-44,-49,-87,-93,-100,-25,-151,-101]} 1. d4 {[%emt 0:00:06]} f5 {[%emt 0:00:02]} 2. c4 {[%emt 0:00:08]} Nf6 {[%emt 0:00:03]} 3. Nc3 {[%emt 0:00:05]} b6 {[%emt 0:00:15]} 4. d5 {[%emt 0:01:42]} Bb7 {[%emt 1:32:10]} 5. Nf3 {[%emt 0:00:27]} c6 {[%emt 0:00:00]} 6. g3 {[%emt 0:01:56]} g6 {[%emt 0:00:00]} 7. Bg2 {[%emt 0:01:12]} Bg7 {[%emt 0:00:00]} 8. O-O {[%emt 0:03:02]} O-O {[%emt 0:00:00]} 9. dxc6 {[%emt 0:01:45] A81: Dutch Defence: 2 g3.} Bxc6 {[%emt 0:00:00]} 10. Qb3 {[%emt 0:06:45]} Kh8 {[%emt 0:00:00]} 11. Nb5 {[%emt 0:03:58]} (11. Bg5 $14) 11... Na6 {[%emt 0:00:00]} 12. Nbd4 {[%emt 0:02:30]} Be4 {[%emt 0:00:00]} 13. Qa3 {[%emt 0:06:05]} Nc7 {[%emt 0:00:00]} 14. Bd2 {[%emt 0:10:21]} d6 {[%emt 0:00:00]} 15. Rac1 {[%emt 0:11:23]} Qd7 {[%emt 0:00:00]} 16. Rfd1 {[%emt 0:04:48]} Nh5 {[%emt 0:00:00]} 17. e3 {[%emt 0:05:09]} Rad8 {[%emt 0:00:00]} 18. Bc3 {[%emt 0:06:06]} a5 {[%emt 0:00:00]} 19. Qb3 {[%emt 0:09:38]} Rb8 {[%emt 0:00:00]} 20. Nb5 {[%emt 0:02:37]} Ne6 {[%emt 0:00:00]} 21. Bxg7+ {[%emt 0:06:43]} Nhxg7 {[%emt 0:00:00]} 22. Ne5 {[%emt 0:02:54]} (22. Ne1 $142) 22... Qc8 {[%emt 0:00:00]} (22... Qb7 $5 23. f3 $8 dxe5 24. fxe4 fxe4 $16) 23. f3 {[%emt 0:05:30]} (23. Nf3 $11) 23... Ba8 {[%emt 0:00:00]} (23... Nc5 $15 24. Qc3 Bb7) 24. Nd3 {[%emt 0:00:41]} Ng5 {[%emt 0:00:00]} 25. Rf1 {[%emt 0:00:31]} Qe6 {[%emt 0:00:00]} 26. Ne1 {[%emt 0:00:49]} Rfc8 {[%emt 0:00:00]} 27. Nd4 {[%emt 0:00:37]} Qf7 {[%emt 0:00:00]} 28. h4 {[%emt 0:00:56]} (28. e4 $11) 28... N5e6 {[%emt 0:00:00]} 29. Nxe6 {[%emt 0:00:33]} Qxe6 {[%emt 0:00:00]} 30. Rf2 {[%emt 0:01:37] [#]} b5 {[%emt 0:00:00]} 31. c5 {[%emt 0:01:11] [#]} Rxc5 $17 {[%emt 0:00:00]} ({Black should play} 31... Bd5 $1 $19 {[%cal Rd5b3]} 32. Qd1 dxc5 (32... Rxc5 $2 33. Rxc5 dxc5 34. Qc1 $17) (32... Qxe3 33. Rc3 $15)) 32. Rxc5 {[%emt 0:01:07]} 1/2-1/2

[Event "Chinese Championship-B Women 2024"]
[Site "Liaocheng"]
[Date "2024.04.26"]
[Round "11.13"]
[White "Wang, Yi(Bj)"]
[Black "Wu, Shuang(Hlj)"]
[Result "1-0"]
[ECO "B30"]
[WhiteElo "1782"]
[BlackElo "1701"]
[Annotator "NA RC"]
[PlyCount "69"]
[EventDate "2024.04.24"]
[EventType "swiss"]
[EventCountry "CHN"]
[SourceTitle "playchess.com"]
[Source "ChessBase"]
[SourceQuality "1"]
[TimeControl "5400+30"]

1. e4 {[%emt 1:31:00]} c5 {[%emt 0:00:04]} 2. Nf3 {[%emt 0:00:00]} e6 {[%emt 0:00:09]} 3. Nc3 {[%emt 0:00:00]} Nc6 {[%emt 0:00:27]} 4. Bb5 {[%emt 0:01:30]} Nge7 {[%emt 0:02:12]} 5. O-O {[%emt 0:00:00]} a6 {[%emt 0:01:04]} 6. Bxc6 {[%emt 0:00:00]} Nxc6 {[%emt 0:00:11]} 7. d4 {[%emt 0:00:00]} cxd4 {[%emt 0:00:44]} 8. Nxd4 {[%emt 0:00:00]} Be7 {[%emt 0:04:40]} 9. Be3 {[%emt 0:00:00]} O-O {[%emt 0:00:45]} 10. Qe2 {[%emt 0:03:00]} Qc7 {[%emt 0:02:35]} 11. Nxc6 {[%emt 0:00:00]} bxc6 {[%emt 0:00:40]} 12. Na4 {[%emt 0:01:00]} Rb8 {[%emt 0:02:57]} 13. c4 {[%emt 0:00:00]} d5 {[%emt 0:09:08]} 14. exd5 {[%emt 0:00:00]} cxd5 {[%emt 0:03:19]} 15. cxd5 {[%emt 0:00:00]} exd5 {[%emt 0:00:12]} 16. Rac1 {[%emt 0:02:00]} Qe5 {[%emt 1:09:23]} 17. Qd2 {[%emt 0:00:30]} Rb4 {[%emt 0:00:30]} 18. f4 {[%emt 0:00:30]} Qb8 {[%emt 0:00:00]} 19. b3 {[%emt 0:00:00]} d4 {[%emt 0:01:00]} 20. Bxd4 {[%emt 0:00:00]} Rd8 {[%emt 0:00:00]} 21. Qe3 {[%emt 0:00:00]} Rbxd4 {[%emt 0:00:00]} 22. Qxe7 {[%emt 0:00:00]} R4d7 {[%emt 0:00:00]} 23. Qe5 {[%emt 0:00:00]} Qb4 {[%emt 0:00:00]} 24. Qc3 {[%emt 0:00:00]} Qf8 {[%emt 0:00:00]} 25. Nb6 {[%emt 0:00:00]} Rd3 {[%emt 0:00:00]} 26. Qxd3 {[%emt 0:00:00]} Rxd3 {[%emt 0:00:00]} 27. Rxc8 {[%emt 0:00:00]} Qxc8 {[%emt 0:00:00]} 28. Nxc8 {[%emt 0:00:00]} Rd2 {[%emt 0:00:00]} 29. a4 {[%emt 0:05:30]} Rd8 {[%emt 0:00:00]} 30. Nb6 {[%emt 0:00:00]} Rd4 {[%emt 0:00:00]} 31. Rc1 {[%emt 0:00:00]} Kf8 {[%emt 0:00:00]} 32. Rc4 {[%emt 0:01:30]} Rd6 33. a5 {[%emt 0:00:00]} Rd1+ {[%emt 0:00:00]} 34. Kf2 {[%emt 0:00:00]} Ra1 {[%emt 0:00:00]} 35. b4 {[%emt 0:01:30]} 1-0